Workbook

Sheet Vendas
A1: BANCAS LEIA BEM - VENDAS DO MÊS ANTERIOR
A2: Revista | B2: Grupo | C2: B. Vista | D2: Centro | E2: C. Norte | F2: Eldorado | G2: Iguatemi | H2: 9 de julho | I2: Paraiso | J2: Paulista | K2: Mínimo | L2: Médio | M2: Máximo | N2: Vendas | O2: Part/V | P2: CMV | Q2: Lucro | R2: Part/L
A3: Veja | B3: OUT | C3: 3231 | D3: 2926 | E3: 2720 | F3: 2093 | G3: 1929 | H3: 1817 | I3: 1600 | J3: 1397 | K3: =MIN($C3:$J3) -> 1397 | L3: =AVERAGE($C3:$J3) -> 2214.125 | M3: =MAX($C3:$J3) -> 3231 | N3: =SUM(C3:J3) -> 17713 | O3: =N3/$N$23 -> 0.1290047704 | P3: =N3*VLOOKUP(Grupo,TAB_GRUPO,2,FALSE) -> 6553.81 | Q3: =N3-P3 -> 11159.19 | R3: =Q3/$Q$23 -> 0.1543620188
A4: Capricho | B4: FEM | C4: 2443 | D4: 2135 | E4: 1950 | F4: 1551 | G4: 1467 | H4: 1334 | I4: 1127 | J4: 1323 | K4: 1127 | L4: 1666.25 | M4: 2443 | N4: 13330 | O4: 0.09708313608 | P4: 6665 | Q4: 6665 | R4: 0.09219511945
A5: Exame | B5: NEG | C5: 2587 | D5: 2279 | E5: 2195 | F5: 1663 | G5: 1519 | H5: 1425 | I5: 1281 | J5: 1211 | K5: 1211 | L5: 1770 | M5: 2587 | N5: 14160 | O5: 0.1031280725 | P5: 8920.8 | Q5: 5239.2 | R5: 0.07247241858
A6: Nova | B6: FEM | C6: 1796 | D6: 1488 | E6: 1498 | F6: 1201 | G6: 1099 | H6: 994 | I6: 893 | J6: 893 | K6: 893 | L6: 1232.75 | M6: 1796 | N6: 9862 | O6: 0.07182549798 | P6: 4931 | Q6: 4931 | R6: 0.0682091724
A7: Marie Claire | B7: FEM | C7: 1743 | D7: 1642 | E7: 1572 | F7: 1159 | G7: 1089 | H7: 956 | I7: 851 | J7: 739 | K7: 739 | L7: 1218.875 | M7: 1743 | N7: 9751 | O7: 0.07101707877 | P7: 4875.5 | Q7: 4875.5 | R7: 0.0674414561
A8: Play boy | B8: OUT | C8: 1138 | D8: 935 | E8: 984 | F8: 749 | G8: 686 | H8: 669 | I8: 525 | J8: 532 | K8: 525 | L8: 777.25 | M8: 1138 | N8: 6218 | O8: 0.04528604202 | P8: 2300.66 | Q8: 3917.34 | R8: 0.05418749126
A9: Ex. Informática | B9: NEG | C9: 1764 | D9: 1561 | E9: 1498 | F9: 1127 | G9: 945 | H9: 984 | I9: 914 | J9: 658 | K9: 658 | L9: 1181.375 | M9: 1764 | N9: 9451 | O9: 0.06883216198 | P9: 5954.13 | Q9: 3496.87 | R9: 0.04837124492
A10: Mônica | B10: MSP | C10: 1047 | D10: 840 | E10: 861 | F10: 749 | G10: 686 | H10: 697 | I10: 553 | J10: 585 | K10: 553 | L10: 752.25 | M10: 1047 | N10: 6018 | O10: 0.04382943083 | P10: 2527.56 | Q10: 3490.44 | R10: 0.04828230049
A11: Quatro Rodas | B11: OUT | C11: 798 | D11: 662 | E11: 694 | F11: 891 | G11: 557 | H11: 729 | I11: 686 | J11: 430 | K11: 430 | L11: 680.875 | M11: 891 | N11: 5447 | O11: 0.03967080587 | P11: 2015.39 | Q11: 3431.61 | R11: 0.04746852121
A12: Cebolinha | B12: MSP | C12: 977 | D12: 872 | E12: 812 | F12: 669 | G12: 595 | H12: 595 | I12: 452 | J12: 473 | K12: 452 | L12: 680.625 | M12: 977 | N12: 5445 | O12: 0.03965623976 | P12: 2286.9 | Q12: 3158.1 | R12: 0.0436851323
A13: Alm Disney | B13: WDP | C13: 1068 | D13: 861 | E13: 903 | F13: 791 | G13: 627 | H13: 648 | I13: 595 | J13: 543 | K13: 543 | L13: 754.5 | M13: 1068 | N13: 6036 | O13: 0.04396052584 | P13: 2897.28 | Q13: 3138.72 | R13: 0.04341705406
A14: Mickey | B14: WDP | C14: 966 | D14: 760 | E14: 791 | F14: 707 | G14: 658 | H14: 595 | I14: 410 | J14: 574 | K14: 410 | L14: 682.625 | M14: 966 | N14: 5461 | O14: 0.03977276865 | P14: 2621.28 | Q14: 2839.72 | R14: 0.03928106896
A15: Tio Patinhas | B15: WDP | C15: 994 | D15: 791 | E15: 728 | F15: 686 | G15: 658 | H15: 595 | I15: 410 | J15: 515 | K15: 410 | L15: 672.125 | M15: 994 | N15: 5377 | O15: 0.03916099195 | P15: 2580.96 | Q15: 2796.04 | R15: 0.03867685548
A16: Magali | B16: MSP | C16: 749 | D16: 648 | E16: 676 | F16: 553 | G16: 515 | H16: 420 | I16: 371 | J16: 410 | K16: 371 | L16: 542.75 | M16: 749 | N16: 4342 | O16: 0.03162302902 | P16: 1823.64 | Q16: 2518.36 | R16: 0.0348357841
A17: Cascão | B17: MSP | C17: 686 | D17: 585 | E17: 595 | F17: 494 | G17: 420 | H17: 308 | I17: 399 | J17: 308 | K17: 308 | L17: 474.375 | M17: 686 | N17: 3795 | O17: 0.02763919741 | P17: 1593.9 | Q17: 2201.1 | R17: 0.03044721342
A18: Pato Donald | B18: WDP | C18: 697 | D18: 595 | E18: 606 | F18: 420 | G18: 441 | H18: 504 | I18: 319 | J18: 494 | K18: 319 | L18: 509.5 | M18: 697 | N18: 4076 | O18: 0.02968573613 | P18: 1956.48 | Q18: 2119.52 | R18: 0.02931873962
A19: Chico Bento | B19: MSP | C19: 525 | D19: 420 | E19: 462 | F19: 371 | G19: 340 | H19: 308 | I19: 277 | J19: 308 | K19: 277 | L19: 376.375 | M19: 525 | N19: 3011 | O19: 0.02192928153 | P19: 1264.62 | Q19: 1746.38 | R19: 0.02415719621
A20: Zé Carioca | B20: WDP | C20: 585 | D20: 389 | E20: 420 | F20: 319 | G20: 410 | H20: 329 | I20: 256 | J20: 504 | K20: 256 | L20: 401.5 | M20: 585 | N20: 3212 | O20: 0.02339317578 | P20: 1541.76 | Q20: 1670.24 | R20: 0.02310397244
A21: Video News | B21: OUT | C21: 431 | D21: 494 | E21: 319 | F21: 350 | G21: 235 | H21: 207 | I21: 217 | J21: 186 | K21: 186 | L21: 304.875 | M21: 494 | N21: 2439 | O21: 0.01776337351 | P21: 902.43 | Q21: 1536.57 | R21: 0.02125495194
A22: Placar | B22: OUT | C22: 308 | D22: 308 | E22: 329 | F22: 224 | G22: 266 | H22: 256 | I22: 235 | J22: 235 | K22: 224 | L22: 270.125 | M22: 329 | N22: 2161 | O22: 0.01573868395 | P22: 799.57 | Q22: 1361.43 | R22: 0.01883228829
A23: TOTAL | B23: =SUM(C23:J23) -> 137305 | C23: =SUM(C3:C22) -> 24533 | D23: 21191 | E23: 20613 | F23: 16767 | G23: 15142 | H23: 14370 | I23: 12371 | J23: 12318 | N23: =SUM(N3:N22) -> 137305 | P23: =SUM(P3:P22) -> 65012.67 | Q23: =SUM(Q3:Q22) -> 72292.33
C24: =C23/$B$23 -> 0.1786752121 | D24: 0.1543352391 | E24: 0.1501256327 | F24: 0.1221149995 | G24: 0.1102800335 | H24: 0.1046575143 | I24: 0.09009868541 | J24: 0.08971268344

Sheet Seleção
B1: =Vendas!B2 -> Grupo | C1: Lucro
B2: FEM | C2: >4000
B3: OUT | C3: >7000
A5: =Vendas!A2 -> Revista | B5: =Vendas!B2 -> Grupo | C5: =Vendas!C2 -> B. Vista | D5: =Vendas!D2 -> Centro | E5: =Vendas!E2 -> C. Norte | F5: =Vendas!F2 -> Eldorado | G5: =Vendas!G2 -> Iguatemi | H5: =Vendas!H2 -> 9 de julho | I5: =Vendas!I2 -> Paraiso | J5: =Vendas!J2 -> Paulista | K5: =Vendas!N2 -> Vendas | L5: =Vendas!P2 -> CMV | M5: =Vendas!Q2 -> Lucro
A6: Veja | B6: OUT | C6: 3231 | D6: 2926 | E6: 2720 | F6: 2093 | G6: 1929 | H6: 1817 | I6: 1600 | J6: 1397 | K6: 17713 | L6: 6553.81 | M6: 11159.19
A7: Capricho | B7: FEM | C7: 2443 | D7: 2135 | E7: 1950 | F7: 1551 | G7: 1467 | H7: 1334 | I7: 1127 | J7: 1323 | K7: 13330 | L7: 6665 | M7: 6665
A8: Nova | B8: FEM | C8: 1796 | D8: 1488 | E8: 1498 | F8: 1201 | G8: 1099 | H8: 994 | I8: 893 | J8: 893 | K8: 9862 | L8: 4931 | M8: 4931
A9: Marie Claire | B9: FEM | C9: 1743 | D9: 1642 | E9: 1572 | F9: 1159 | G9: 1089 | H9: 956 | I9: 851 | J9: 739 | K9: 9751 | L9: 4875.5 | M9: 4875.5

Sheet Resumo
A2: DESCRIÇÃO | B2: GRUPO | C2: =Vendas!C2 -> B. Vista | D2: =Vendas!D2 -> Centro | E2: =Vendas!E2 -> C. Norte | F2: =Vendas!F2 -> Eldorado | G2: =Vendas!G2 -> Iguatemi | H2: =Vendas!H2 -> 9 de julho | I2: =Vendas!I2 -> Paraiso | J2: =Vendas!J2 -> Paulista | K2: Vendas | L2: Part/V
A3: Revistas Femininas | B3: FEM | C3: =DSUM(BDADOS,Resumo!C$2,$B$2:$B$3) -> 5982 | D3: =DSUM(BDADOS,Resumo!D$2,$B$2:$B$3) -> 5265 | E3: =DSUM(BDADOS,Resumo!E$2,$B$2:$B$3) -> 5020 | F3: =DSUM(BDADOS,Resumo!F$2,$B$2:$B$3) -> 3911 | G3: =DSUM(BDADOS,Resumo!G$2,$B$2:$B$3) -> 3655 | H3: =DSUM(BDADOS,Resumo!H$2,$B$2:$B$3) -> 3284 | I3: =DSUM(BDADOS,Resumo!I$2,$B$2:$B$3) -> 2871 | J3: =DSUM(BDADOS,Resumo!J$2,$B$2:$B$3) -> 2955 | K3: =SUM(C3:J3) -> 32943 | L3: =K3/$K$8 -> 0.2399257128
A4: Maurício de Souza | B4: MSP | C4: =DSUM(BDADOS,Resumo!C$2,$B$2:$B$4)-C3 -> 3984 | D4: =DSUM(BDADOS,Resumo!D$2,$B$2:$B$4)-D3 -> 3365 | E4: =DSUM(BDADOS,Resumo!E$2,$B$2:$B$4)-E3 -> 3406 | F4: =DSUM(BDADOS,Resumo!F$2,$B$2:$B$4)-F3 -> 2836 | G4: =DSUM(BDADOS,Resumo!G$2,$B$2:$B$4)-G3 -> 2556 | H4: =DSUM(BDADOS,Resumo!H$2,$B$2:$B$4)-H3 -> 2328 | I4: =DSUM(BDADOS,Resumo!I$2,$B$2:$B$4)-I3 -> 2052 | J4: =DSUM(BDADOS,Resumo!J$2,$B$2:$B$4)-J3 -> 2084 | K4: =SUM(C4:J4) -> 22611 | L4: =K4/$K$8 -> 0.1646771785
A5: Negócios | B5: NEG | C5: =DSUM(BDADOS,Resumo!C$2,$B$2:$B$5)-C3-C4 -> 4351 | D5: =DSUM(BDADOS,Resumo!D$2,$B$2:$B$5)-D3-D4 -> 3840 | E5: =DSUM(BDADOS,Resumo!E$2,$B$2:$B$5)-E3-E4 -> 3693 | F5: =DSUM(BDADOS,Resumo!F$2,$B$2:$B$5)-F3-F4 -> 2790 | G5: =DSUM(BDADOS,Resumo!G$2,$B$2:$B$5)-G3-G4 -> 2464 | H5: =DSUM(BDADOS,Resumo!H$2,$B$2:$B$5)-H3-H4 -> 2409 | I5: =DSUM(BDADOS,Resumo!I$2,$B$2:$B$5)-I3-I4 -> 2195 | J5: =DSUM(BDADOS,Resumo!J$2,$B$2:$B$5)-J3-J4 -> 1869 | K5: 23611 | L5: 0.1719602345
A6: Disney | B6: WDP | C6: =DSUM(BDADOS,Resumo!C$2,$B$2:$B$6)-C3-C4-C5 -> 4310 | D6: =DSUM(BDADOS,Resumo!D$2,$B$2:$B$6)-D3-D4-D5 -> 3396 | E6: =DSUM(BDADOS,Resumo!E$2,$B$2:$B$6)-E3-E4-E5 -> 3448 | F6: =DSUM(BDADOS,Resumo!F$2,$B$2:$B$6)-F3-F4-F5 -> 2923 | G6: =DSUM(BDADOS,Resumo!G$2,$B$2:$B$6)-G3-G4-G5 -> 2794 | H6: =DSUM(BDADOS,Resumo!H$2,$B$2:$B$6)-H3-H4-H5 -> 2671 | I6: =DSUM(BDADOS,Resumo!I$2,$B$2:$B$6)-I3-I4-I5 -> 1990 | J6: =DSUM(BDADOS,Resumo!J$2,$B$2:$B$6)-J3-J4-J5 -> 2630 | K6: 24162 | L6: 0.1759731984
A7: Outros | B7: OUT | C7: =DSUM(BDADOS,Resumo!C$2,$B$2:$B$7)-C3-C4-C5-C6 -> 5906 | D7: =DSUM(BDADOS,Resumo!D$2,$B$2:$B$7)-D3-D4-D5-D6 -> 5325 | E7: =DSUM(BDADOS,Resumo!E$2,$B$2:$B$7)-E3-E4-E5-E6 -> 5046 | F7: =DSUM(BDADOS,Resumo!F$2,$B$2:$B$7)-F3-F4-F5-F6 -> 4307 | G7: =DSUM(BDADOS,Resumo!G$2,$B$2:$B$7)-G3-G4-G5-G6 -> 3673 | H7: =DSUM(BDADOS,Resumo!H$2,$B$2:$B$7)-H3-H4-H5-H6 -> 3678 | I7: =DSUM(BDADOS,Resumo!I$2,$B$2:$B$7)-I3-I4-I5-I6 -> 3263 | J7: =DSUM(BDADOS,Resumo!J$2,$B$2:$B$7)-J3-J4-J5-J6 -> 2780 | K7: 33978 | L7: 0.2474636758
B8: Total por banca | C8: =SUM(C3:C7) -> 24533 | D8: =SUM(D3:D7) -> 21191 | E8: 20613 | F8: 16767 | G8: 15142 | H8: 14370 | I8: 12371 | J8: 12318 | K8: =SUM(K3:K7) -> 137305 | L8: =SUM(L3:L7) -> 1

Sheet Tabela
A2: DESCRIÇÃO | B2: GRUPO | C2: % CUSTO
A3: Revistas Femininas | B3: FEM | C3: 0.5
A4: Maurício de Souza | B4: MSP | C4: 0.42
A5: Negócios | B5: NEG | C5: 0.63
A6: Disney | B6: WDP | C6: 0.48
A7: Outros | B7: OUT | C7: 0.37
